fUSD/lending_fUSD_20250911
["ID","MTS","AMOUNT","RATE_DAILY","PERIOD"]
[384803901,1757559038417,-1000.0,0.00032868,2]
[384803902,1757559038429,-300.0,0.00032877,12]
[384803903,1757559038438,-300.0,0.00032877,12]
[384803904,1757559038447,-300.0,0.00032877,12]
[384803905,1757559038455,-312.0,0.00032877,12]
[384803906,1757559038464,-288.0,0.00032877,7]
[384803907,1757559038473,-972.5994,0.00032879,2]
[384803908,1757559038482,-231.9639,0.00032879,2]
[384803909,1757559038492,-6972.7335,0.00032879,2]
[384803910,1757559038500,-561.66886666,0.00032879,2]
[384803911,1757559038509,-168.745,0.0003289,34]
[384803912,1757559038519,-500.0,0.000329,12]
[384803913,1757559038528,-684.9,0.00032948,2]
[384803914,1757559038537,-684.9,0.00032948,2]
[384803916,1757559038546,-731.0,0.00032956,7]
[384803918,1757559038555,-402.92179168,0.00032957,2]
[384803919,1757559038568,-11078.16606581,0.00032958,2]
[384803923,1757559040455,-397.20111182,0.00032958,2]
[384804083,1757559043231,-3867.81141163,0.00032958,2]
[384804084,1757559043300,-10303.80794899,0.00032958,2]
[384804085,1757559043312,-388663.81320977,0.00032958,2]
[384804086,1757559043321,-4016.39856845,0.00032958,2]
[384804087,1757559043330,-168.024887,0.00032958,7]
[384804088,1757559043339,-168.024887,0.00032958,7]
[384804089,1757559043349,-168.024887,0.00032958,7]
[384804090,1757559043358,-168.024887,0.00032958,7]
[384804091,1757559043368,-168.024887,0.00032958,7]
[384804092,1757559043378,-168.024887,0.00032958,7]
[384804093,1757559043388,-168.024887,0.00032958,7]
[384804094,1757559043398,-168.024887,0.00032958,7]
[384804095,1757559043409,-151.0,0.00032958,7]
[384804096,1757559043419,-169.524807,0.00032958,7]
[384804097,1757559043431,-205.667501,0.00032958,7]
[384804098,1757559043440,-16384.61917604,0.00032958,3]
[384804100,1757559043528,-17.78999287,0.00032958,3]
[384804108,1757559045511,1000.0,0.0002,2]
[384804113,1757559046198,-495.710442,0.00032958,7]
[384804114,1757559046208,-495.710442,0.00032958,7]
[384804115,1757559046217,-405.00649985,0.00032958,3]
[384804116,1757559046294,-2562.87372001,0.00032958,3]
[384804117,1757559046304,-20697.85452546,0.00032958,3]
[384804118,1757559046395,-1095.661,0.00032958,3]
[384804218,1757559063588,300.0,0.000253,120]
[384804219,1757559064320,195.0,0.000253,120]
[384804224,1757559585492,158.14,0.00015985,2]
[384804229,1757559667599,157.0,0.0002,2]
[384804232,1757559678645,157.0,0.0002,2]
[384804241,1757560168109,-483.0,0.00023,2]
[384804242,1757560168136,-250.0,0.0002395,2]
[384804243,1757560168164,-983.9162255,0.000249,2]
[384804244,1757560168190,-190.9876043,0.000252,2]
[384804245,1757560168216,-250.0,0.000253,2]
[384804246,1757560222240,951.11901808,0.000249,2]
[384804247,1757560231508,-951.11901797,0.00027827,8]
[384804248,1757560231518,-212.89373682,0.00027962,2]
[384804249,1757560231527,-192.99,0.00028888,30]
[384804250,1757560231536,-192.99,0.0002995,30]
[384804251,1757560231545,-160.0,0.0003003,2]
[384804252,1757560231554,-160.0,0.0003003,2]
[384804253,1757560231563,-515.37529716,0.0003003,2]
[384804254,1757560231573,-1010.55504813,0.000304,2]
[384804255,1757560231582,-160.0,0.000304,2]
[384804256,1757560231590,-8929.0,0.00030474,30]
[384804257,1757560231599,-300.0,0.0003061,120]
[384804258,1757560231609,-1600.0,0.00030749,2]
[384804259,1757560231618,-951.11901797,0.00030754,14]
[384804260,1757560231627,-300.0,0.00030899,2]
[384804261,1757560231637,-352.0,0.00030899,2]
[384804262,1757560231646,-400.0,0.00030899,2]
[384804263,1757560231655,-800.0,0.000309,2]
[384804264,1757560231665,-192.99,0.00031011,30]
[384804265,1757560231674,-332.0,0.000311,2]
[384804266,1757560231685,-449.49,0.00031717,2]
[384804267,1757560231694,-465.26,0.00031787,30]
[384804268,1757560231704,-201.31,0.00031846,2]
[384804269,1757560231715,-160.85,0.00031846,2]
[384804270,1757560231725,-791.49,0.00031866,35]
[384804271,1757560231735,-1524.54,0.00031881,2]
[384804272,1757560231744,-7617.20424064,0.00031927,2]
[384804273,1757560231755,-4393.98,0.0003198,2]
[384804274,1757560231764,-150.0,0.0003204,7]
[384804275,1757560231774,-192.99,0.00032073,30]
[384804276,1757560231783,-248.71531821,0.0003211,2]
[384804277,1757560231792,-666.0,0.00032181,3]
[384804278,1757560231802,-325.0,0.0003228,2]
[384804279,1757560231812,-2380.17,0.00032438,2]
[384804280,1757560231821,-803.09217078,0.00032526,2]
[384804281,1757560231834,-94.50782922,0.00032526,2]
[384804283,1757560231843,-353.18,0.00032526,2]
[384804285,1757560231853,-1190.36,0.00032526,2]
[384804286,1757560231863,-290.44415227,0.00032731,2]
[384804287,1757560231872,-161.298,0.00032731,33]
[384804288,1757560231882,-155.0,0.000328,30]
[384804289,1757560231892,-155.0,0.000328,120]
[384804291,1757560231901,-157.0,0.000328,120]
[384804293,1757560231911,-155.407,0.00032879,2]
[384804295,1757560231920,-320.4898084,0.0003288,2]
[384804296,1757560231930,-322.6107,0.0003288,2]
[384804297,1757560231939,-729.76011299,0.0003288,2]
[384804298,1757560231948,-500.0,0.0003288,2]
[384804300,1757560231958,-162.27419426,0.0003288,2]
[384804302,1757560231967,-151.0,0.0003288,2]
[384804304,1757560231976,-500.0,0.0003288,2]
[384804306,1757560231986,-705.31009175,0.0003288,2]
[384804308,1757560231995,-500.0,0.0003288,2]
[384804310,1757560232004,-500.0,0.0003288,2]
[384804311,1757560232014,-151.0,0.0003288,2]
[384804312,1757560232023,-500.0,0.0003288,2]
[384804313,1757560232032,-151.0,0.0003288,2]
[384804314,1757560232041,-500.0,0.0003288,2]
[384804315,1757560232051,-151.0,0.0003288,2]
[384804316,1757560232060,-500.0,0.0003288,2]
[384804317,1757560232071,-151.0,0.0003288,2]
[384804318,1757560232084,-500.0,0.0003288,2]
[384804319,1757560232094,-151.69404082,0.0003288,2]
[384804320,1757560232103,-151.0,0.0003288,2]
[384804321,1757560232113,-151.0,0.0003288,2]
[384804322,1757560232123,-500.0,0.0003288,2]
[384804323,1757560232132,-151.0,0.0003288,2]
[384804324,1757560232142,-152.33064598,0.0003288,2]
[384804325,1757560232151,-848.46361009,0.0003288,2]
[384804326,1757560232161,-260.88804853,0.0003288,2]
[384804327,1757560232170,-151.0,0.0003288,2]
[384804328,1757560232179,-151.0,0.0003288,2]
[384804329,1757560232188,-151.0,0.0003288,2]
[384804330,1757560232198,-151.0,0.0003288,2]
[384804331,1757560232208,-151.0,0.0003288,2]
[384804332,1757560232217,-1000.0,0.0003288,2]
[384804333,1757560232226,-614.56673051,0.0003288,2]
[384804334,1757560232236,-151.0,0.0003288,2]
[384804335,1757560232246,-1000.0,0.0003288,2]
[384804336,1757560232255,-155.18634635,0.0003288,2]
[384804337,1757560232264,-1000.0,0.0003288,2]
[384804338,1757560232273,-1000.0,0.0003288,2]
[384804339,1757560232283,-1070.47194101,0.0003288,2]
[384804340,1757560232293,-500.0,0.0003288,2]
[384804341,1757560232304,-500.0,0.0003288,2]
[384804342,1757560232313,-411.1923901,0.0003288,2]
[384804343,1757560232323,-591.92604998,0.0003288,2]
[384804344,1757560232335,-408.07395002,0.0003288,2]
[384804345,1757560232345,-281.57865211,0.0003288,2]
[384804346,1757560232402,-446.57142673,0.0003288,2]
[384804347,1757560232414,-271.84992116,0.0003288,2]
[384804348,1757560232425,-1000.0,0.0003288,2]
[384804349,1757560232434,-206.10084073,0.0003288,2]
[384804350,1757560232446,-293.89915927,0.0003288,2]
[384804351,1757560232455,-500.0,0.0003288,2]
[384804352,1757560232465,-500.0,0.0003288,2]
[384804353,1757560232474,-500.0,0.0003288,2]
[384804354,1757560232483,-103.55216081,0.0003288,2]
[384804355,1757560232494,-396.44783919,0.0003288,2]
[384804356,1757560232503,-263.01747713,0.0003288,2]
[384804357,1757560232513,-1697.28511668,0.000329,2]
[384804358,1757560232522,-855.0,0.00032962,2]
[384804359,1757560232531,-150.0,0.0003297,2]
[384804360,1757560232540,-152.98817603,0.0003297,2]
[384804361,1757560232550,-150.87785308,0.0003297,2]
[384804362,1757560232560,-152.01717715,0.0003297,2]
[384804363,1757560232571,-150.0,0.0003297,2]
[384804364,1757560232582,-243.07347098,0.0003297,2]
[384804365,1757560232593,-70.22100976,0.0003297,2]
[384804366,1757560232606,-79.77899024,0.0003297,2]
[384804367,1757560232615,-170.31005884,0.0003297,2]
[384804368,1757560232696,-40.12561752,0.0003297,2]
[384804369,1757560232706,-500.0,0.0003297,2]
[384804370,1757560232715,-52.60491675,0.00032973,5]
[384804371,1757560232727,-447.39508325,0.00032973,5]
[384804372,1757560232736,-57.50228162,0.00032973,5]
[384804373,1757560237732,-144.66287469,0.00032973,5]
[384804374,1757560237742,-501.50031932,0.00032973,5]
[384804375,1757560237751,-150.0,0.0003298,2]
[384804376,1757560237760,-150.0,0.0003298,2]
[384804377,1757560237769,-150.0,0.0003298,2]
[384804378,1757560237778,-150.0,0.0003298,2]
[384804379,1757560237788,-263.03425292,0.0003299,7]
[384804381,1757560237797,-165.28844055,0.00032999,2]
[384804383,1757560237808,-336.85536239,0.00032999,2]
[384804385,1757560237818,-500.0,0.00032999,120]
[384804387,1757560237827,-1079.30330259,0.00033,2]
[384804389,1757560237839,-1239.23805153,0.00033,2]
[384804391,1757560237851,-704.27,0.00033,2]
[384804393,1757560237862,-1420.32407115,0.00033,2]
[384804397,1757560237891,-666.00004142,0.00033,2]
[384804441,1757560239581,-275.1,0.00032645,120]
[384804442,1757560239591,-370.19055905,0.00033,2]
[384804448,1757560245556,-68255.57338486,0.00033,2]
[384804449,1757560245661,-466.81370507,0.00033,2]
[384804450,1757560245722,-2514.3505,0.00033,2]
[384804451,1757560245790,-324.05887627,0.00033,2]
[384804480,1757560557720,153.52,0.00016238,2]
[384804483,1757560581712,151.26,0.00030137,120]
[384804493,1757560744189,1000.0,0.0002739,120]
[384804501,1757560802418,1000.0,0.0002739,120]
[384804502,1757560803974,302.76241069,0.0002739,120]
[384804505,1757560969790,10000.0,0.0002,2]
[384804506,1757560977360,10000.0,0.0002,2]
[384804507,1757560983541,1800.0,0.0002,2]
[384804516,1757561108485,45160.92509318,0.0002,2]
[384804532,1757561202128,-261.89572858,0.000205,5]
[384804534,1757561215909,500.0,0.0002,5]
[384804535,1757561235465,-238.10427142,0.000205,5]
[384804536,1757561235491,-300.0,0.00020999,2]
[384804537,1757561235515,-3882.89572858,0.00021,2]
[384804552,1757561359106,-428.710849,0.00021,2]
[384804581,1757561432182,-3275.02187933,0.00021,2]
[384804585,1757561432208,-3611.72002995,0.00021,2]
[384804587,1757561432217,-174.45055905,0.00023,2]
[384804589,1757561432227,-505.94479004,0.000231,2]
[384804591,1757561432235,-1200.0,0.00024899,2]
[384804593,1757561432245,-1017.8623058,0.000249,2]
[384804595,1757561432253,-300.0,0.00026499,2]
[384804597,1757561432262,-9062.27106736,0.000265,2]
[384804599,1757561432271,-524.0,0.00027099,2]
[384804601,1757561432280,-167.05310542,0.0002729,2]
[384804603,1757561432289,-1017.86230556,0.00027827,8]
[384804605,1757561432298,-337.0,0.00028663,2]
[384804607,1757561432308,-508.3003826,0.00029973,5]
[384804609,1757561432317,-33446.32041691,0.0003,2]
[384804611,1757561432328,-66553.67958309,0.0003,2]
[384804613,1757561432338,-1017.86230556,0.00030754,14]
[384804615,1757561432347,-40104.03930318,0.00031,2]
[384804618,1757561432364,-20571.81539506,0.00031,2]
[384804620,1757561432376,-1011.01486806,0.00031,2]
[384804622,1757561432387,-38313.1304337,0.00031,2]
[384804624,1757561432396,-170.93,0.00031078,120]
[384804626,1757561432405,-250.0,0.0003131,2]
[384804628,1757561432415,-515.37529716,0.00031539,2]
[384804630,1757561432424,-503.09697983,0.0003158,5]
[384804632,1757561432433,-220489.47036011,0.000318,2]
[384804634,1757561432442,-1527.55660503,0.000318,2]
[384804636,1757561432452,-333.0,0.000319,2]
[384804638,1757561432461,-2008.19928423,0.0003199,2]
[384804640,1757561432471,-20844.1821887,0.0003199,3]
[384804642,1757561432481,-181.028411,0.0003199,7]
[384804644,1757561432490,-181.028411,0.0003199,7]
[384804646,1757561432499,-181.028411,0.0003199,7]
[384804648,1757561432508,-181.028411,0.0003199,7]
[384804650,1757561432518,-151.0,0.0003199,7]
[384804652,1757561432527,-293.286296,0.0003199,7]
[384804654,1757561432536,-248.52073375,0.00031999,2]
[384804656,1757561432545,-3076.0,0.00032,2]
[384804658,1757561432554,-100000.0,0.00032,2]
[384804660,1757561432564,-1016.0,0.00032,2]
[384804662,1757561432574,-151.0,0.00032,7]
[384804664,1757561432583,-297.584982,0.00032,7]
[384804666,1757561432592,-181.028411,0.00032,7]
[384804668,1757561432601,-181.028411,0.00032,7]
[384804670,1757561432610,-181.028411,0.00032,7]
[384804672,1757561432619,-181.028411,0.00032,7]
[384804674,1757561432629,-167.238999,0.00032,7]
[384804676,1757561432639,-161.04,0.00032062,2]
[384804678,1757561432648,-158.62,0.00032144,2]
[384804680,1757561432657,-461.7,0.00032165,2]
[384804681,1757561432666,-181.028411,0.00032227,7]
[384804683,1757561432675,-181.028411,0.00032227,7]
[384804685,1757561432685,-181.028411,0.00032227,7]
[384804687,1757561432695,-181.028411,0.00032227,7]
[384804689,1757561432704,-42353.66068549,0.00032228,3]
[384804691,1757561432716,-14717.12308833,0.00032228,3]
[384804694,1757561432728,-30283.04736694,0.00032228,3]
[384804706,1757561432840,-875.95952308,0.00032228,3]
[384804746,1757561439594,-280.12924791,0.0003189,2]
[384804747,1757561439604,-15991.12028016,0.00032228,3]
[384804748,1757561439614,-6166.75047193,0.00032238,2]
[384804749,1757561439625,-303.15271724,0.00032238,2]
[384804750,1757561439707,-2557.78078646,0.00032238,2]
[384804751,1757561439719,-1572.36602437,0.00032238,2]
[384804752,1757561439728,-163.647159,0.00032238,7]
[384804753,1757561439737,-248.71531821,0.00032277,2]
[384804754,1757561439746,-500.0,0.00032277,2]
[384804755,1757561439756,-500.0,0.00032277,2]
[384804756,1757561439765,-13.64349793,0.00032277,2]
[384804757,1757561439883,-486.35650207,0.00032277,2]
[384804758,1757561439892,-500.0,0.00032277,2]
[384804759,1757561439902,-1000.0,0.00032277,2]
[384804760,1757561439911,-1000.0,0.00032277,2]
[384804761,1757561439920,-157.45,0.00032286,2]
[384804762,1757561439929,-181.028411,0.00032286,7]
[384804763,1757561439942,-181.028411,0.00032286,7]
[384804764,1757561439951,-181.028411,0.00032286,7]
[384804765,1757561439961,-181.028411,0.00032286,7]
[384804766,1757561439970,-8815.04481806,0.00032286,3]
[384804767,1757561440051,-5704.4999999,0.00032286,3]
[384804770,1757561440118,-1360.51046044,0.00032286,3]
[384804773,1757561440131,-502.29884863,0.00032286,3]
[384804775,1757561440142,-1797.73310535,0.00032286,3]
[384804777,1757561440154,-1178.60237766,0.00032286,3]
[384805094,1757561446227,-475.182277,0.0003199,7]
[384805095,1757561446237,-475.182277,0.00032,7]
[384805096,1757561446247,-977.11,0.00032021,2]
[384805097,1757561446256,-475.182277,0.00032227,7]
[384805098,1757561446265,-1485.49257866,0.00032286,3]
[384805099,1757561446274,-778.0,0.00032295,2]
[384805100,1757561446283,-778.0,0.00032295,2]
[384805101,1757561446292,-778.0,0.00032295,2]
[384805102,1757561446302,-778.0,0.00032295,2]
[384805103,1757561446311,-778.0,0.00032295,2]
[384805104,1757561446320,-778.0,0.00032295,2]
[384805105,1757561446330,-778.0,0.00032295,2]
[384805106,1757561446339,-778.0,0.00032295,2]
[384805107,1757561446348,-778.0,0.00032295,2]
[384805108,1757561446357,-778.0,0.00032295,2]
[384805109,1757561446366,-778.0,0.00032295,2]
[384805110,1757561446376,-778.0,0.00032295,2]
[384805111,1757561446386,-778.0,0.00032295,2]
[384805112,1757561446396,-778.0,0.00032295,2]
[384805113,1757561446405,-778.0,0.00032295,2]
[384805114,1757561446415,-778.0,0.00032295,2]
[384805115,1757561446424,-778.0,0.00032295,2]
[384805116,1757561446433,-17159.11,0.00032296,2]
[384805117,1757561446442,-666.0,0.00032319,3]
[384805118,1757561446451,-212.89373682,0.00032351,2]
[384805119,1757561446461,-162.3,0.00032378,2]
[384805120,1757561446470,-160.0,0.00032388,2]
[384805121,1757561446480,-160.0,0.00032388,2]
[384805122,1757561446490,-1527.55660501,0.00032409,2]
[384805123,1757561446499,-153.52,0.00032475,2]
[384805124,1757561446509,-280.12924783,0.00032489,2]
[384805125,1757561446518,-150.0,0.00032611,7]
[384805126,1757561446528,-1536.04,0.00032722,120]
[384805127,1757561446537,-178.40249651,0.00032722,33]
[384805128,1757561446547,-200.072,0.00032722,33]
[384805129,1757561446556,-555.25979873,0.0003297,2]
[384805130,1757561446565,-190.06518753,0.0003297,2]
[384805131,1757561446574,-17010.6673849,0.0003299,3]
[384805132,1757561446583,-181.028411,0.0003299,7]
[384805133,1757561446592,-181.028411,0.0003299,7]
[384805134,1757561446601,-181.028411,0.0003299,7]
[384805135,1757561446610,-181.02841,0.0003299,7]
[384805136,1757561446619,-8744.70804503,0.00033,2]
[384805137,1757561446628,-324.96926243,0.00033,57]
[384805138,1757561446640,-587.87,0.00033,7]
[384805139,1757561446649,-2000.0,0.00033,2]
[384805140,1757561446659,-4292.6420826,0.00033,5]
[384805141,1757561446668,-314.55246,0.00033,7]
[384805142,1757561446677,-219.0,0.00033009,2]
[384805143,1757561446687,-1527.55660501,0.00033018,2]
[384805144,1757561446696,-258.0,0.00033032,2]
[384805145,1757561446706,-190.76,0.00033038,2]
[384805146,1757561446715,-258.0,0.00033051,7]
[384805147,1757561446724,-326.0,0.0003308,2]
[384805148,1757561446734,-258.0,0.00033137,2]
[384805149,1757561446743,-152.0,0.00033196,3]
[384805150,1757561446752,-161.04,0.00033264,2]
[384805151,1757561446761,-409.88,0.0003335,2]
[384805152,1757561446770,-1079.66,0.0003335,2]
[384805153,1757561446779,-845.58338581,0.0003349,2]
[384805154,1757561446788,-204.26363936,0.0003349,2]
[384805155,1757561446797,-500.0,0.0003349,2]
[384805156,1757561446807,-219.0,0.00033608,2]
[384805157,1757561446816,-30469.80838935,0.00033623,3]
[384805158,1757561446850,-330.33856,0.00032295,2]
[384805167,1757561561184,155.62,0.00016201,2]
[384805294,1757561882913,300.0,0.0002739,120]
[384805295,1757561883034,300.0,0.00026364,120]
[384805296,1757561884153,339.32708615,0.0002739,120]
[384805389,1757562416100,-201.9713817,0.000249,2]
[384805393,1757562559104,-734.10329043,0.000249,2]
[384805394,1757562559126,-163.95029505,0.000252,2]
[384805395,1757562559149,-936.07467187,0.00027827,8]
[384805396,1757562586508,160.0,0.00028874,2]
[384805397,1757562616462,873.6696939,0.000249,2]
[384805398,1757562616522,873.66969374,0.00027827,8]
[384805404,1757562632217,-873.66969374,0.00030754,14]
[384805405,1757562632226,-501.08215854,0.00030973,5]
[384805406,1757562632236,-160.0,0.00030999,2]
[384805407,1757562632245,-161.0,0.00030999,2]
[384805408,1757562632254,-1200.0,0.00030999,2]
[384805409,1757562632263,-212.89373682,0.00030999,2]
[384805410,1757562632272,-100000.0,0.00031,2]
[384805411,1757562632281,-4350.12876783,0.00031294,2]
[384805412,1757562632291,-298.54,0.00031294,3]
[384805413,1757562632300,-248.71531821,0.00031563,2]
[384805414,1757562632310,-220.08,0.00031656,120]
[384805415,1757562632320,-333.0,0.000317,2]
[384805416,1757562632329,-200.0,0.00031746,2]
[384805417,1757562632339,-212.0,0.0003181,2]
[384805419,1757562632348,-230.85,0.00031841,2]
[384805420,1757562632358,-21917.15040532,0.00032,2]
[384805421,1757562632428,-1412.92,0.00032,2]
[384805422,1757562632510,-515.37529716,0.00031866,2]
[384805423,1757562632519,-687.10335144,0.00032,2]
[384805424,1757562632584,-856.80289621,0.00032,2]
[384805429,1757562637972,-14755.59362832,0.00032,2]
[384805631,1757562640350,-4205.50609553,0.00032,2]
[384805643,1757562640446,-314.0,0.00032,2]
[384806198,1757562645826,-3175.07177991,0.00032,2]
[384806200,1757562645837,-290.07901028,0.00032,2]
[384806914,1757562897501,1540.40423945,0.0002,3]
[384806923,1757563021322,158.71830452,0.0002739,120]
[384806931,1757563083087,195.0,0.0002739,120]
[384806932,1757563083649,500.0,0.0002739,120]
[384806963,1757563618254,-471.282447,0.000249,2]
[384806976,1757563832164,-820.3354905,0.000249,2]
[384806977,1757563832173,-1126.19458231,0.0002729,2]
[384806978,1757563832183,-250.0,0.0002739,2]
[384806979,1757563832193,-419.71739141,0.0002739,2]
[384806980,1757563832203,-195.0,0.0002739,2]
[384806981,1757563832213,-503.0,0.00027562,2]
[384806982,1757563832222,-820.33549038,0.00027827,8]
[384806983,1757563832232,-163.61502525,0.0003,10]
[384806984,1757563832242,-493.24055252,0.0003,2]
[384806985,1757563832251,-820.33549038,0.00030754,14]
[384806986,1757563832260,-170.93,0.00031209,120]
[384806987,1757563832269,-426.48,0.00031445,30]
[384806988,1757563832279,-711.0,0.00031518,3]
[384806989,1757563832288,-158.62,0.00031519,2]
[384806990,1757563832297,-332.0,0.000316,2]
[384806991,1757563832306,-160.0,0.00031693,2]
[384806992,1757563832315,-212.89373682,0.00031693,2]
[384806993,1757563832324,-515.37529716,0.00031693,2]
[384806994,1757563832333,-361.0,0.00031711,3]
[384806995,1757563832343,-400.0,0.00031711,2]
[384806996,1757563832352,-493.43006807,0.00031848,3]
[384806997,1757563832363,-172.56993193,0.00031848,3]
[384806998,1757563832373,-3616.35287954,0.000319,2]
[384806999,1757563832382,-1228.59321988,0.000319,2]
[384807000,1757563832391,-255.2288703,0.00031907,2]
[384807001,1757563832401,-248.71531821,0.00031981,2]
[384807002,1757563832411,-2255.61150431,0.0003199,3]
[384807004,1757563832455,-16137.41085049,0.0003199,3]
[384807006,1757563832464,-151.0,0.00031997,7]
[384807009,1757563832473,-193.807,0.00031999,31]
[384807012,1757563832482,-47453.20133598,0.00032,2]
[384807014,1757563832491,-20273.13055608,0.00032,30]
[384807017,1757563832503,-4344.16748859,0.00032,30]
[384807029,1757563832673,-1152.94613026,0.00032,30]
[384807030,1757563832684,-306.88097256,0.00032,30]
[384807042,1757563838522,-160.0,0.00031657,2]
[384807044,1757563838531,-141.2226,0.00032,2]
[384807055,1757563838625,-1250.76988282,0.00032,2]
[384807057,1757563838634,-3192.3925194,0.00032,2]
[384807059,1757563838645,-348.08562732,0.00032,2]
[384807074,1757563840074,-640.93466945,0.00032,2]
[384807075,1757563840127,-11474.52764722,0.00032,2]
[384807076,1757563840233,-1541.42278996,0.00032,2]
[384807077,1757563840245,-3960.0863388,0.00032,2]
[384807084,1757563843441,-605.31831957,0.00032,2]
[384807086,1757563845914,-1309.85838196,0.00032,2]
[384807088,1757563846002,-451.97603993,0.00032,2]
[384807128,1757563846916,-259.99276856,0.00032,2]
[384807132,1757563846943,-331.16576,0.00032,2]
[384807370,1757563868434,1199.159173,7.945e-05,2]
[384807375,1757563974896,5201.743,0.00030136,120]
[384807401,1757564287625,163.42,0.00016438,2]
[384807419,1757564513255,176.06,0.00029381,120]
[384807455,1757564967144,-182.074147,0.00023692,2]
[384807456,1757564967164,-151.0,0.00023769,2]
[384807457,1757564967184,-151.0,0.00023809,2]
[384807458,1757564967203,-151.0,0.00023853,2]
[384807459,1757564967222,-151.0,0.00023853,2]
[384807460,1757564967242,-151.0,0.00023902,2]
[384807461,1757564967262,-2214.67584616,0.00024,5]
[384807462,1757564967281,-500.0,0.000248,2]
[384807463,1757564967302,-1191.15971484,0.00024899,2]
[384807473,1757565006878,156.02,0.00014909,2]
[384807474,1757565007009,156.02,0.00015841,2]
[384807475,1757565007128,156.02,0.00016773,2]
[384807476,1757565007300,156.02,0.00017705,2]
[384807477,1757565007406,156.02,0.00018637,2]
[384807478,1757565007501,156.02,0.00019568,2]
[384807517,1757565032361,-156.02,0.000205,2]
[384807518,1757565032370,-156.02,0.00021432,2]
[384807519,1757565032379,-156.02,0.00022364,2]
[384807520,1757565032389,-156.02,0.00023296,2]
[384807521,1757565032398,-151.0,0.00023978,2]
[384807522,1757565032407,-151.0,0.00024087,2]
[384807523,1757565032416,-151.0,0.0002412,2]
[384807524,1757565032425,-156.02,0.00024228,2]
[384807525,1757565032434,-131.94970483,0.00024899,2]
[384807526,1757565032446,-168.05029517,0.00024899,2]
[384807527,1757565032456,-546.19586281,0.000249,3]
[384807528,1757565032467,-453.80413719,0.000249,3]
[384807529,1757565032476,-328.2508187,0.000249,3]
[384807530,1757565032573,-360.25224434,0.000249,3]
[384807531,1757565032584,-311.49693696,0.000249,3]
[384807532,1757565032594,-8.30306354,0.000249,3]
[384807533,1757565032622,-991.69693646,0.000249,3]
[384807534,1757565032632,-1000.0,0.000249,3]
[384807535,1757565032641,-1000.0,0.000249,3]
[384807536,1757565032650,-1000.0,0.000249,3]
[384807537,1757565032669,-1000.0,0.000249,3]
[384807538,1757565032679,-1000.0,0.000249,3]
[384807539,1757565032689,-1000.0,0.000249,3]
[384807540,1757565032699,-1000.0,0.000249,3]
[384807541,1757565032708,-1000.0,0.000249,3]
[384807542,1757565032718,-962.10102524,0.000249,3]
[384807543,1757565032770,-37.89897476,0.000249,3]
[384807544,1757565032783,-581.83956051,0.000249,3]
[384807551,1757565032850,-418.16043949,0.000249,3]
[384807552,1757565032860,-1000.0,0.000249,3]
[384807554,1757565032870,-1000.0,0.000249,3]
[384807556,1757565032879,-1000.0,0.000249,3]
[384807558,1757565032889,-348.03391747,0.000249,3]
[384807563,1757565032976,-651.96608253,0.000249,3]
[384807564,1757565032986,-1000.0,0.000249,3]
[384807565,1757565032995,-1000.0,0.000249,3]
[384807566,1757565033005,-970.76,0.000249,3]
[384807567,1757565033015,-515.37529716,0.000249,3]
[384807568,1757565033024,-854.38680732,0.000249,2]